[Event "Josef Kupper Memorial 2019"]
[Site "Zurich"]
[Date "2019.08.18"]
[Round "7.14"]
[White "Sutter, Oliver"]
[Black "Pavlovic, Milos"]
[Result "0-1"]
[ECO "E59"]
[WhiteElo "2344"]
[BlackElo "2502"]
[Annotator "ChessBase"]
[PlyCount "78"]
[EventDate "2019.08.14"]
[EventType "swiss"]
[EventCountry "SUI"]
[SourceTitle "playchess.com"]
[Source "ChessBase"]
[SourceQuality "1"]
[TimeControl "40/5400+30:1800+30"]

1. d4 {[%emt 0:00:00]} d5 {[%emt 0:00:03]} 2. c4 {[%emt 0:00:00]} e6 {[%emt 0:00:12]} 3. Nc3 {[%emt 0:00:00]} Bb4 {[%emt 0:00:20]} 4. e3 {[%emt 0:00:43]} Nf6 {[%emt 0:00:47]} 5. Bd3 {[%emt 0:00:29]} O-O {[%emt 0:00:21]} 6. Nf3 {[%emt 0:00:18]} dxc4 {[%emt 0:07:50]} 7. Bxc4 {[%emt 0:00:20]} c5 {[%emt 0:00:06]} 8. O-O {[%emt 0:00:30]} Nc6 {[%emt 0:03:13]} 9. a3 {[%emt 0:00:19]} Bxc3 {[%emt 0:00:07]} 10. bxc3 {[%emt 0:00:05]} Qc7 {[%emt 0:00:06]} 11. Bb2 {[%emt 0:01:29]} e5 {[%emt 0:00:28]} 12. Be2 {[%emt 0:00:51]} e4 {[%emt 0:29:10]} 13. Nd2 {[%emt 0:01:23]} Re8 {[%emt 0:03:19]} 14. h3 {[%emt 0:06:18]} Bf5 {[%emt 0:01:20]} 15. Qc2 {[%emt 0:25:24]} Rac8 {[%emt 0:23:00]} 16. c4 {[%emt 0:20:47]} cxd4 {[%emt 0:00:17]} 17. exd4 {[%emt 0:00:05]} Ne7 {[%emt 0:08:21]} 18. Qb3 {[%emt 0:01:40]} Ng6 {[%emt 0:02:37]} 19. Qe3 {[%emt 0:05:08]} Nf4 {[%emt 0:00:31]} 20. d5 {[%emt 0:02:22]} Nd7 {[%emt 0:00:13]} 21. Rfe1 {[%emt 0:05:35]} Nc5 {[%emt 0:00:14]} 22. Bd4 {[%emt 0:03:11]} b6 {[%emt 0:00:01]} 23. Bf1 {[%emt 0:02:20]} Ncd3 {[%emt 0:07:49]} 24. Bxd3 {[%emt 0:00:24]} Nxd3 {[%emt 0:00:04]} 25. Red1 {[%emt 0:09:23]} Bg6 {[%emt 0:00:02]} 26. Bc3 {[%emt 0:02:35]} f5 {[%emt 0:00:42]} 27. Qd4 {[%emt 0:01:07]} f4 {[%emt 0:01:17]} 28. Nb3 {[%emt 0:01:19]} Qf7 {[%emt 0:02:19]} 29. a4 {[%emt 0:02:56]} f3 {[%emt 0:05:32]} 30. a5 {[%emt 0:01:30]} Nf4 {[%emt 0:00:25]} 31. Rd2 {[%emt 0:01:13]} fxg2 {[%emt 0:00:57]} 32. axb6 {[%emt 0:01:10]} axb6 {[%emt 0:00:15]} 33. c5 {[%emt 0:00:59]} Nxh3+ {[%emt 0:02:34]} 34. Kxg2 {[%emt 0:00:04]} Nf4+ {[%emt 0:00:31]} 35. Kg3 {[%emt 0:03:01]} bxc5 {[%emt 0:00:47]} 36. Nxc5 {[%emt 0:00:02]} Rxc5 {[%emt 0:00:32]} 37. Qxc5 {[%emt 0:00:13]} Qf5 {[%emt 0:00:02]} 38. f3 {[%emt 0:01:20]} e3 {[%emt 0:01:36]} 39. Qd4 {[%emt 0:00:15]} Qh3+ {[%emt 0:00:49]} 0-1

[Event "Josef Kupper Memorial 2019"]
[Site "Zurich"]
[Date "2019.08.18"]
[Round "7.15"]
[White "Arjun Kalyan"]
[Black "Sukandar, Irine Kharisma"]
[Result "1-0"]
[ECO "B39"]
[WhiteElo "2482"]
[BlackElo "2385"]
[Annotator "ChessBase"]
[PlyCount "109"]
[EventDate "2019.08.14"]
[EventType "swiss"]
[EventCountry "SUI"]
[SourceTitle "playchess.com"]
[Source "ChessBase"]
[SourceQuality "1"]
[TimeControl "40/5400+30:1800+30"]

1. e4 {[%emt 0:00:00]} c5 {[%emt 0:04:42]} 2. Nf3 {[%emt 0:00:00]} Nc6 {[%emt 0:00:36]} 3. d4 {[%emt 0:00:00]} cxd4 {[%emt 0:00:09]} 4. Nxd4 {[%emt 0:00:00]} g6 {[%emt 0:00:18]} 5. c4 {[%emt 0:00:44]} Bg7 {[%emt 0:01:06]} 6. Be3 {[%emt 0:00:13]} Nf6 {[%emt 0:01:02]} 7. Nc3 {[%emt 0:00:26]} Ng4 {[%emt 0:00:23]} 8. Qxg4 {[%emt 0:00:21]} Nxd4 {[%emt 0:00:05]} 9. Qd1 {[%emt 0:00:21]} e5 {[%emt 0:00:20]} 10. Bd3 {[%emt 0:00:37]} d6 {[%emt 0:01:08]} 11. O-O {[%emt 0:00:30]} O-O {[%emt 0:00:21]} 12. Qd2 {[%emt 0:01:19]} Be6 {[%emt 0:00:53]} 13. Rac1 {[%emt 0:01:36]} Rc8 {[%emt 0:01:12]} 14. b3 {[%emt 0:01:19]} a6 {[%emt 0:01:00]} 15. Rfd1 {[%emt 0:02:05]} Qd7 {[%emt 0:10:00]} 16. Ne2 {[%emt 0:07:25]} Bg4 {[%emt 0:12:33]} 17. Bxd4 {[%emt 0:17:42]} Bxe2 {[%emt 0:00:32]} 18. Qxe2 {[%emt 0:00:05]} exd4 {[%emt 0:00:09]} 19. f4 {[%emt 0:01:08]} Rfe8 {[%emt 0:02:31]} 20. Qf3 {[%emt 0:01:58]} Qc7 {[%emt 0:02:20]} 21. Rc2 {[%emt 0:02:34]} Qa5 {[%emt 0:05:47]} 22. h4 {[%emt 0:04:50]} Kh8 {[%emt 0:03:00]} 23. g4 {[%emt 0:05:37]} b5 {[%emt 0:07:34]} 24. Re2 {[%emt 0:08:07]} b4 {[%emt 0:08:20]} 25. g5 {[%emt 0:03:30]} h5 {[%emt 0:03:48]} 26. Rde1 {[%emt 0:09:33]} Qc7 {[%emt 0:05:08]} 27. e5 {[%emt 0:02:21]} dxe5 {[%emt 0:00:47]} 28. f5 {[%emt 0:00:02]} Qd6 {[%emt 0:02:21]} 29. Qe4 {[%emt 0:05:36]} Rc6 {[%emt 0:06:50]} 30. f6 {[%emt 0:03:28]} Bf8 {[%emt 0:00:19]} 31. Qd5 {[%emt 0:00:26]} Qxd5 {[%emt 0:11:01]} 32. cxd5 {[%emt 0:00:01]} Rc3 {[%emt 0:00:09]} 33. Rxe5 {[%emt 0:01:22]} Rxe5 {[%emt 0:00:17]} 34. Rxe5 {[%emt 0:00:00]} Bd6 {[%emt 0:00:16]} 35. Re8+ {[%emt 0:03:13]} Kh7 {[%emt 0:00:01]} 36. Rd8 {[%emt 0:02:51]} Rxd3 {[%emt 0:03:24]} 37. Rxd6 {[%emt 0:00:01]} Re3 {[%emt 0:00:09]} 38. Kf2 {[%emt 0:03:21]} Re4 {[%emt 0:02:30]} 39. Rc6 {[%emt 0:08:38]} d3 {[%emt 0:01:46]} 40. Rc1 {[%emt 0:00:13]} Rd4 {[%emt 0:04:35]} 41. Ke3 {[%emt 0:31:45]} Rxd5 {[%emt 0:00:51]} 42. Rd1 {[%emt 0:00:00]} Re5+ {[%emt 0:09:40]} 43. Kxd3 {[%emt 0:00:00]} Rd5+ {[%emt 0:00:07]} 44. Ke2 {[%emt 0:00:00]} Re5+ {[%emt 0:00:48]} 45. Kf3 {[%emt 0:00:00]} Rf5+ {[%emt 0:00:18]} 46. Kg3 {[%emt 0:00:00]} Ra5 {[%emt 0:00:34]} 47. Rd7 {[%emt 0:00:00]} Rxa2 {[%emt 0:00:26]} 48. Rxf7+ {[%emt 0:00:00]} Kg8 {[%emt 0:00:08]} 49. Rg7+ {[%emt 0:00:00]} Kf8 {[%emt 0:00:06]} 50. Rxg6 {[%emt 0:00:00]} Rb2 {[%emt 0:00:25]} 51. Rh6 {[%emt 0:00:00]} Rxb3+ {[%emt 0:00:29]} 52. Kf4 {[%emt 0:00:00]} Rb1 {[%emt 0:00:30]} 53. g6 {[%emt 0:00:00]} Kg8 {[%emt 0:00:06]} 54. Kg5 {[%emt 0:00:00]} Rf1 {[%emt 0:01:08]} 55. f7+ {[%emt 0:00:00]} 1-0

[Event "Josef Kupper Memorial 2019"]
[Site "Zurich"]
[Date "2019.08.18"]
[Round "7.16"]
[White "Meier, Volker"]
[Black "Gaehwiler, Gabriel"]
[Result "1/2-1/2"]
[ECO "A36"]
[WhiteElo "2281"]
[BlackElo "2397"]
[Annotator "NA"]
[PlyCount "34"]
[EventDate "2019.08.14"]
[EventType "swiss"]
[EventCountry "SUI"]
[SourceTitle "playchess.com"]
[Source "ChessBase"]
[SourceQuality "1"]
[TimeControl "40/5400+30:1800+30"]

1. c4 {[%emt 0:00:00]} g6 {[%emt 0:00:00]} 2. Nc3 {[%emt 0:00:00]} Bg7 {[%emt 0:00:00]} 3. g3 {[%emt 0:01:38]} c5 {[%emt 0:03:28]} 4. Bg2 {[%emt 0:00:11]} Nc6 {[%emt 0:00:09]} 5. e4 {[%emt 0:03:11]} e6 {[%emt 0:07:28]} 6. Nge2 {[%emt 0:00:19]} Nge7 {[%emt 0:00:18]} 7. O-O {[%emt 0:00:35]} O-O {[%emt 0:00:49]} 8. d3 {[%emt 0:01:01]} d6 {[%emt 0:12:04]} 9. Be3 {[%emt 0:01:51]} Nd4 {[%emt 0:00:53]} 10. Qd2 {[%emt 0:00:15]} Bd7 {[%emt 0:08:27]} 11. Bh6 {[%emt 0:02:15]} Bxh6 {[%emt 0:05:39]} 12. Qxh6 {[%emt 0:01:59]} Bc6 {[%emt 0:00:16]} 13. Qd2 {[%emt 0:09:02]} d5 {[%emt 0:02:00]} 14. cxd5 {[%emt 0:04:42]} Nxe2+ {[%emt 0:05:44]} 15. Nxe2 {[%emt 0:00:50]} exd5 {[%emt 0:00:06]} 16. Qc3 dxe4 17. dxe4 b6 1/2-1/2